bitfinex/quotes_SOLUSD_20241216
["timestamp","ask_amount","ask_price","bid_price","bid_amount"]
[1734385214474,0.6893792,217.64,217.59,8.91212469]
[1734385215150,0.6893792,217.64,217.58,8.91212469]
[1734385215949,0.6893792,217.66,217.6,8.91212469]
[1734385216148,6.4979,217.67,217.61,8.91212469]
[1734385216324,8.3752792,217.72,217.65,8.91212469]
[1734385216527,17.28740389,217.72,217.65,8.91212469]
[1734385216849,8.91212469,217.7,217.59,0.68911123]
[1734385217035,8.3752792,217.72,217.65,8.91212469]
[1734385217036,17.28740389,217.72,217.65,8.91212469]
[1734385217451,8.91212469,217.71,217.64,8.91212469]
[1734385220823,0.6893792,217.7,217.64,8.91212469]
[1734385221121,9.60150389,217.7,217.63,8.91212469]
[1734385221744,9.60150389,217.7,217.62,8.91212469]
[1734385222952,8.91212469,217.69,217.62,8.91212469]
[1734385223522,0.6893792,217.68,217.62,8.91212469]
[1734385223945,8.91212469,217.69,217.62,8.91212469]
[1734385224561,8.91212469,217.7,217.64,8.91212469]
[1734385224941,16.59802469,217.72,217.65,8.91212469]
[1734385225153,0.6893792,217.71,217.65,8.91212469]
[1734385225338,8.91212469,217.7,217.63,8.91212469]
[1734385225542,9.60150389,217.69,217.59,0.68909995]
[1734385225752,8.91212469,217.64,217.57,8.91212469]
[1734385226138,8.91212469,217.65,217.58,8.91212469]
[1734385226345,0.6893792,217.69,217.59,8.91212469]
[1734385226346,8.91212469,217.66,217.59,8.91212469]
[1734385226543,7.6859,217.72,217.6,8.91212469]
[1734385226544,8.91212469,217.67,217.6,8.91212469]
[1734385226747,0.6893792,217.71,217.61,8.91212469]
[1734385226748,8.91212469,217.68,217.61,8.91212469]
[1734385227029,8.91212469,217.7,217.63,8.91212469]
[1734385227229,8.91212469,217.7,217.64,8.91212469]
[1734385227642,8.91212469,217.71,217.64,8.91212469]
[1734385227845,9.60150389,217.71,217.64,8.91212469]
[1734385229557,0.6893792,217.71,217.65,8.91212469]
[1734385230854,1.5226,217.72,217.65,8.91212469]
[1734385231059,10.43472469,217.72,217.65,8.91212469]
[1734385231631,1.5226,217.72,217.66,8.91212469]
[1734385232442,10.43472469,217.72,217.65,8.91212469]
[1734385232648,8.91212469,217.71,217.64,8.91212469]
[1734385233158,0.6893792,217.7,217.61,20.0]
[1734385233364,0.6893792,217.7,217.64,8.91212469]
[1734385233732,0.6893792,217.7,217.62,8.91212469]
[1734385233733,8.91212469,217.69,217.62,8.91212469]
[1734385233938,9.60150389,217.68,217.61,8.91212469]
[1734385234647,15.68020389,217.68,217.61,8.91212469]
[1734385234843,6.0787,217.68,217.62,8.91212469]
[1734385235262,6.0787,217.68,217.63,8.91212469]
[1734385236264,14.99082469,217.68,217.62,8.91212469]
[1734385237544,14.99082469,217.68,217.61,8.91212469]
[1734385237747,6.0787,217.68,217.63,8.91212469]
[1734385238078,8.91212469,217.7,217.64,8.91212469]
[1734385238964,11.12410389,217.72,217.65,8.91212469]
[1734385239356,10.43472469,217.72,217.65,8.91212469]
[1734385239562,2.2119792,217.72,217.59,0.68908677]
[1734385239747,100.47247746,217.83,217.71,8.91212469]
[1734385239748,2.3131792,217.77,217.71,8.91212469]
[1734385239947,1.6238,217.77,217.71,8.91212469]
[1734385241548,2.3131792,217.77,217.71,8.91212469]
[1734385242145,1.6238,217.77,217.71,8.91212469]
[1734385243381,11.22530389,217.77,217.7,8.91212469]
[1734385244080,2.3131792,217.77,217.71,8.91212469]
[1734385245679,8.91212469,217.76,217.69,8.91212469]
[1734385245977,2.3131792,217.77,217.71,8.91212469]
[1734385246184,1.6238,217.77,217.71,8.91212469]
[1734385247657,2.3131792,217.77,217.71,8.91212469]
[1734385248290,11.22530389,217.77,217.7,8.91212469]
[1734385249087,2.3131792,217.77,217.7,8.91212469]
[1734385250986,1.6238,217.77,217.7,8.91212469]
[1734385251289,2.3131792,217.77,217.71,8.91212469]
[1734385252086,1.6238,217.77,217.71,8.91212469]
[1734385252297,1.6238,217.77,217.73,8.91212469]
[1734385252462,8.91212469,217.8,217.73,8.91212469]
[1734385252661,8.91212469,217.81,217.73,8.91212469]
[1734385252889,0.6893792,217.8,217.73,8.91212469]
[1734385253474,9.60150389,217.81,217.73,8.91212469]
[1734385255182,8.91212469,217.81,217.74,8.91212469]
[1734385255992,1.6413,217.82,217.76,8.91212469]
[1734385256705,2.3306792,217.82,217.76,8.91212469]
[1734385257218,11.24280389,217.82,217.75,8.91212469]
[1734385260410,8.91212469,217.8,217.72,20.0]
[1734385260602,8.91212469,217.8,217.71,23.776884]
[1734385260603,8.91212469,217.8,217.73,8.91212469]
[1734385265017,8.91212469,217.79,217.69,43.776884]
[1734385265220,8.91212469,217.79,217.71,8.91212469]
[1734385265595,8.91212469,217.79,217.72,8.91212469]
[1734385265790,8.91212469,217.8,217.72,8.91212469]
[1734385266005,8.91212469,217.8,217.73,8.91212469]
[1734385266500,8.91212469,217.81,217.73,8.91212469]
[1734385266696,10.55342469,217.82,217.74,8.91212469]
[1734385266900,11.24280389,217.82,217.74,8.91212469]
[1734385267423,11.24280389,217.82,217.75,8.91212469]
[1734385267611,2.3306792,217.82,217.75,8.91212469]
[1734385267919,11.24280389,217.82,217.75,8.91212469]
[1734385268423,10.55342469,217.82,217.75,8.91212469]
[1734385269715,8.91212469,217.81,217.74,8.91212469]
[1734385269900,8.91212469,217.81,217.73,8.91212469]
[1734385270104,8.91212469,217.81,217.74,8.91212469]
[1734385270497,8.91212469,217.8,217.73,8.91212469]
[1734385270908,8.91212469,217.81,217.74,8.91212469]
[1734385272811,8.91212469,217.8,217.73,8.91212469]
[1734385273026,8.91212469,217.8,217.72,8.91212469]
[1734385273215,9.60150389,217.79,217.71,8.91212469]
[1734385274560,8.91212469,217.78,217.71,8.91212469]
[1734385275533,8.91212469,217.79,217.72,8.91212469]
[1734385277239,1.6413,217.82,217.74,8.91212469]
[1734385277444,11.24280389,217.82,217.75,8.91212469]
[1734385277615,10.55342469,217.82,217.75,8.91212469]
[1734385278640,2.2238792,217.87,217.8,8.91212469]
[1734385278934,1.5345,217.87,217.81,8.91212469]
[1734385279937,1.5345,217.87,217.8,8.91212469]
[1734385280515,11.13600389,217.87,217.8,8.91212469]
[1734385280940,8.91212469,217.86,217.76,5.60937126]
[1734385281240,9.60150389,217.85,217.76,5.60937126]
[1734385281412,8.91212469,217.84,217.77,8.91212469]
[1734385281811,8.91212469,217.86,217.79,8.91212469]
[1734385282114,0.6893792,217.85,217.79,8.91212469]
[1734385282821,9.60150389,217.86,217.79,8.91212469]
[1734385283321,8.91212469,217.86,217.79,8.91212469]
[1734385284541,0.6893792,217.85,217.79,8.91212469]
[1734385285943,9.60150389,217.85,217.78,8.91212469]
[1734385287643,0.5415372,217.91,217.79,6.29801963]
[1734385287852,0.5415372,217.91,217.8,23.776884]
[1734385288045,0.5415372,217.91,217.81,0.68842646]
[1734385289349,9.43431739,217.91,217.81,0.68842646]
[1734385290659,0.5415372,217.91,217.81,0.68842646]
[1734385290848,0.5415372,217.91,217.82,23.776884]
[1734385291256,0.5415372,217.91,217.83,0.68839612]
[1734385291838,10.12369659,217.91,217.83,0.68839612]
[1734385292071,8.89278019,217.9,217.8,5.60937126]
[1734385292764,9.43431739,217.91,217.81,0.68847583]
[1734385292973,9.43431739,217.91,217.82,23.776884]
[1734385295453,8.89278019,217.9,217.82,23.776884]
[1734385296176,9.43431739,217.91,217.83,0.68841738]
[1734385298851,9.58215939,217.9,217.81,23.776884]
[1734385299163,8.89278019,217.9,217.81,23.776884]
[1734385299865,8.89278019,217.9,217.8,6.29783703]
[1734385300453,9.58215939,217.89,217.8,6.29783703]
[1734385300674,9.58215939,217.89,217.8,5.60937126]
[1734385300860,8.89278019,217.88,217.8,5.60937126]
[1734385301254,1.2309164,217.91,217.79,23.776884]
[1734385301453,1.2309164,217.91,217.8,0.68849959]
[1734385301660,10.12369659,217.91,217.8,0.68849959]
[1734385303063,8.89278019,217.9,217.8,0.68849959]
[1734385303758,8.89278019,217.89,217.8,0.68849959]
[1734385303954,9.58215939,217.88,217.78,23.776884]
[1734385304285,9.58215939,217.88,217.79,20.0]
[1734385304618,8.89278019,217.87,217.77,0.68848936]
[1734385305196,8.89278019,217.88,217.77,0.68848936]
[1734385305365,0.6893792,217.87,217.77,0.68848936]
[1734385305994,8.89278019,217.89,217.77,0.68848936]
[1734385306199,9.58215939,217.88,217.77,0.68848936]
[1734385308071,0.6893792,217.88,217.77,0.68848936]
[1734385308683,20.0,217.86,217.77,0.68848936]
[1734385309196,9.58215939,217.88,217.77,0.68848936]
[1734385313358,8.89278019,217.87,217.77,0.68848936]
[1734385315093,1.5176,217.86,217.77,0.68848936]
[1734385315592,8.89278019,217.82,217.75,23.776884]
[1734385315886,8.89278019,217.83,217.75,23.776884]
[1734385317699,8.89416254,217.83,217.76,8.89416254]
[1734385320194,8.89416254,217.8,217.71,1.5007]
[1734385320367,8.89416254,217.79,217.73,8.89416254]
[1734385320687,0.12549,217.85,217.74,3.50663071]
[1734385320688,8.89416254,217.78,217.74,3.50663071]
[1734385320879,8.89416254,217.78,217.75,3.50663071]
[1734385321081,8.89416254,217.78,217.72,8.89416254]
[1734385321288,8.89416254,217.78,217.73,3.50663071]
[1734385321490,8.89416254,217.78,217.74,3.50663071]
[1734385321681,8.89416254,217.78,217.75,3.50663071]
[1734385321880,8.89416254,217.78,217.73,3.50663071]
[1734385322075,8.89416254,217.78,217.74,3.50663071]
[1734385322295,8.89416254,217.78,217.75,3.50663071]
[1734385322483,8.89416254,217.77,217.76,3.50663071]
[1734385322691,8.89416254,217.77,217.72,3.50663071]
[1734385322890,8.89416254,217.77,217.73,3.50663071]
[1734385323189,8.89416254,217.77,217.74,3.50663071]
[1734385323394,8.89416254,217.77,217.71,8.89416254]
[1734385323599,8.89416254,217.77,217.75,3.50956835]
[1734385323807,8.89416254,217.77,217.76,3.50956835]
[1734385324401,2.2498792,217.9,217.77,23.776884]
[1734385324612,1.5605,217.9,217.86,8.89416254]
[1734385325675,0.5415372,217.91,217.89,8.89416254]
[1734385327308,0.5415372,217.91,217.8,41.26505925]
[1734385327309,0.5415372,217.91,217.88,8.89416254]
[1734385328026,0.5415372,217.91,217.89,8.89416254]
[1734385329409,0.5415372,217.91,217.88,8.89416254]
[1734385332903,0.5415372,217.91,217.86,8.89416254]
[1734385334109,0.5415372,217.91,217.81,20.68842978]
[1734385334110,9.43569974,217.91,217.81,20.68842978]
[1734385334313,0.6893792,217.9,217.81,20.0]
[1734385334507,0.6893792,217.9,217.84,8.89416254]
[1734385334710,0.6893792,217.9,217.78,10.82647539]
[1734385334711,8.89416254,217.88,217.78,10.82647539]
[1734385334892,0.6893792,217.9,217.82,8.89416254]
[1734385334893,8.89416254,217.89,217.82,8.89416254]
[1734385335097,0.6893792,217.88,217.82,8.89416254]
[1734385338795,8.89416254,217.89,217.82,8.89416254]
[1734385338976,8.89416254,217.89,217.83,8.89416254]
[1734385339428,0.6893792,217.88,217.83,8.89416254]
[1734385339595,0.6893792,217.88,217.82,8.89416254]
[1734385340315,0.5415372,217.91,217.85,8.89416254]
[1734385340808,0.5415372,217.91,217.84,8.89416254]
[1734385340809,0.6893792,217.9,217.84,8.89416254]
[1734385341006,9.58354174,217.9,217.83,8.89416254]
[1734385343886,8.89416254,217.89,217.8,3.51154519]
[1734385344213,1.2309164,217.91,217.84,8.89416254]
[1734385344394,10.12507894,217.91,217.84,8.89416254]
[1734385344599,8.89416254,217.9,217.83,8.89416254]
[1734385344816,0.6893792,217.89,217.83,8.89416254]
[1734385346321,10.12507894,217.91,217.84,8.89416254]
[1734385346819,8.89416254,217.9,217.83,8.89416254]
[1734385347404,9.58354174,217.89,217.82,8.89416254]
[1734385348009,0.6893792,217.89,217.83,8.89416254]
[1734385349206,9.58354174,217.89,217.79,24.46537103]
[1734385349388,9.58354174,217.89,217.81,8.89416254]
[1734385349389,8.89416254,217.88,217.81,8.89416254]
[1734385349586,8.89416254,217.89,217.82,8.89416254]
[1734385349911,0.6893792,217.88,217.82,8.89416254]
[1734385351031,8.89416254,217.86,217.81,3.51102296]
[1734385351328,8.89416254,217.86,217.8,8.89416254]
[1734385352010,11.18844174,217.87,217.81,8.89416254]
[1734385355424,8.89416254,217.85,217.79,3.51257896]
[1734385355607,8.89416254,217.86,217.79,8.89416254]
[1734385355934,9.58354174,217.85,217.76,23.776884]
[1734385356110,9.58354174,217.85,217.79,8.89416254]
[1734385357166,1.6049,217.87,217.76,23.776884]
[1734385357167,1.6049,217.87,217.83,8.89416254]
[1734385357738,1.6049,217.87,217.82,8.89416254]
[1734385358207,0.5415372,217.91,217.86,8.89416254]
[1734385358405,0.5415372,217.91,217.83,0.68850111]
[1734385358406,0.5415372,217.91,217.87,8.89416254]
[1734385360419,0.5415372,217.91,217.88,8.89416254]
[1734385361955,0.5415372,217.91,217.89,8.89416254]
[1734385362314,0.5415372,217.91,217.9,8.89416254]
[1734385362542,0.5415372,217.91,217.89,8.89416254]
[1734385370758,0.5415372,217.91,217.9,8.89416254]
[1734385377057,0.5415372,217.91,217.9,32.67104654]
[1734385381131,0.5415372,217.91,217.9,23.776884]
[1734385381337,0.5415372,217.91,217.9,32.67104654]
[1734385383350,0.5415372,217.91,217.9,32.79653654]
[1734385383538,0.5415372,217.91,217.9,33.48460306]
[1734385383737,0.5415372,217.91,217.9,44.31107845]
[1734385384060,0.5415372,217.91,217.9,79.88772861]
[1734385385743,1.638,218.03,217.94,20.0]
[1734385385949,1.638,218.03,217.97,8.89416254]
[1734385387543,8.89416254,218.06,217.99,8.89416254]
[1734385389337,0.6893792,218.07,217.94,20.68800527]
[1734385389338,0.6893792,218.07,218.0,8.89416254]
[1734385389537,9.58354174,218.07,218.0,8.89416254]
[1734385390363,8.89416254,218.06,217.95,23.902374]
[1734385390570,8.89416254,218.06,217.99,8.89416254]
[1734385391452,8.89416254,218.07,218.0,8.89416254]
[1734385391770,8.89416254,218.06,217.99,8.89416254]
[1734385391942,8.89416254,218.07,218.0,8.89416254]
[1734385392568,2.2358792,218.1,218.0,8.89416254]
[1734385392878,2.2358792,218.1,218.01,8.89416254]
[1734385392879,8.89416254,218.08,218.01,8.89416254]
[1734385394953,8.89416254,218.07,218.0,8.89416254]
[1734385396272,8.89416254,218.06,217.99,8.89416254]
[1734385396677,2.2358792,218.1,218.0,8.89416254]
[1734385396860,8.89416254,218.07,218.0,8.89416254]
[1734385397057,2.2358792,218.1,218.01,8.89416254]
[1734385397373,8.89416254,218.08,218.01,8.89416254]
[1734385401282,0.6893792,218.09,218.03,8.89416254]
[1734385401963,9.58354174,218.09,218.02,8.89416254]
[1734385404878,0.6893792,218.09,218.03,8.89416254]
[1734385406583,9.58354174,218.09,218.02,8.89416254]
[1734385411087,9.58354174,218.09,217.96,2.34362537]
[1734385411088,11.11854174,218.09,217.96,2.21813537]
[1734385411295,8.89416254,218.08,218.01,8.89416254]
[1734385411589,0.6893792,218.07,218.01,8.89416254]
[1734385412664,1.535,218.09,218.03,8.89416254]
[1734385413070,2.2243792,218.09,218.03,8.89416254]
[1734385415259,1.535,218.09,218.03,8.89416254]
[1734385415558,2.2243792,218.09,218.03,8.89416254]
[1734385418194,1.535,218.09,218.04,8.89416254]
[1734385418377,1.535,218.09,218.05,8.89416254]
[1734385418895,0.6893792,218.12,218.05,8.89416254]
[1734385419094,0.6893792,218.12,218.06,8.89416254]
[1734385419396,10.12507894,218.13,218.06,8.89416254]
[1734385420062,1.2309164,218.13,218.08,8.89416254]
[1734385420262,0.5415372,218.13,218.08,8.89416254]
[1734385423277,0.5415372,218.13,218.09,8.89416254]
[1734385426002,0.5415372,218.13,218.08,8.89416254]
[1734385426704,0.6893792,218.12,218.08,8.89416254]
[1734385427006,0.5415372,218.13,218.09,8.89416254]
[1734385430413,0.5415372,218.13,218.07,8.89416254]
[1734385431301,1.2309164,218.13,218.07,8.89416254]
[1734385431698,0.5415372,218.13,218.07,8.89416254]
[1734385432396,1.2309164,218.13,218.07,8.89416254]
[1734385432602,0.5415372,218.13,218.07,8.89416254]
[1734385433125,0.5415372,218.13,218.08,8.89416254]
[1734385433284,0.5415372,218.13,218.09,8.89416254]
[1734385434719,0.5415372,218.13,218.08,8.89416254]
[1734385436396,0.5415372,218.13,218.09,8.89416254]
[1734385439040,0.5415372,218.13,218.07,8.89416254]
[1734385439812,0.5415372,218.13,218.06,23.776884]
[1734385440127,0.5415372,218.13,218.07,8.89416254]
[1734385447899,0.5415372,218.13,218.09,8.89416254]
[1734385448298,0.5415372,218.13,218.11,8.89416254]
[1734385448612,0.5415372,218.13,218.12,8.89416254]
[1734385448811,0.5415372,218.13,218.12,32.67104654]
[1734385450930,0.5415372,218.13,218.12,38.42650956]
[1734385451634,0.5415372,218.13,218.12,38.55199956]
[1734385452635,2.53861692,218.31,218.12,38.55199956]
[1734385452636,8.89416254,218.3,218.2,20.0]
[1734385452934,1.5012,218.32,218.17,23.902374]
[1734385452935,8.89416254,218.26,218.19,8.89416254]
[1734385453113,0.6893792,218.25,218.19,8.89416254]
[1734385454209,41.11818736,218.35,218.19,8.89416254]
[1734385454210,0.5415372,218.35,218.28,20.0]
[1734385454412,0.5415372,218.35,218.3,23.776884]
[1734385454634,10.94399974,218.35,218.28,8.89416254]
[1734385454804,8.89416254,218.33,218.22,3.47688358]
[1734385455009,8.89416254,218.33,218.25,8.89416254]
[1734385455311,8.89416254,218.33,218.26,8.89416254]
[1734385456029,8.89416254,218.34,218.26,8.89416254]
[1734385456535,8.89416254,218.34,218.21,23.776884]
[1734385456718,0.5415372,218.35,218.3,8.89416254]
[1734385456918,0.5415372,218.35,218.25,0.68707859]
[1734385457135,0.5415372,218.35,218.32,8.89416254]
[1734385457325,0.5415372,218.35,218.29,20.0]
[1734385457531,0.5415372,218.35,218.32,8.89416254]
[1734385458120,0.5415372,218.35,218.26,6.10032539]
[1734385458434,0.5415372,218.35,218.28,8.89416254]
[1734385458635,0.5415372,218.35,218.29,8.89416254]
[1734385461039,0.5415372,218.35,218.26,6.10032539]
[1734385461240,0.5415372,218.35,218.29,8.89416254]
[1734385465242,0.5415372,218.35,218.3,8.89416254]
[1734385465953,20.5415372,218.35,218.3,8.89416254]
[1734385467668,0.5415372,218.35,218.3,8.89416254]
[1734385468228,20.5415372,218.35,218.3,8.89416254]
[1734385469265,20.5415372,218.35,218.29,8.89416254]
[1734385469559,0.5415372,218.35,218.29,8.89416254]
[1734385480991,0.5415372,218.35,218.28,8.89416254]
[1734385483969,0.5415372,218.35,218.29,8.89416254]
[1734385487215,8.89416254,218.32,218.25,8.89416254]
[1734385487382,8.89416254,218.32,218.2,5.2045565]
[1734385487587,8.89416254,218.32,218.24,8.89416254]
[1734385487988,8.89416254,218.31,218.24,8.89416254]
[1734385488177,1.5459,218.33,218.18,5.2045565]
[1734385488178,8.89416254,218.32,218.25,8.89416254]
[1734385490706,8.89416254,218.31,218.24,8.89416254]
[1734385493905,8.89416254,218.31,218.25,8.89416254]
[1734385494887,8.89416254,218.31,218.19,3.47044831]
[1734385494888,8.89416254,218.31,218.24,8.89416254]
[1734385498894,8.89416254,218.31,218.25,8.89416254]
[1734385499399,52.67104654,218.32,218.25,8.89416254]
[1734385499606,43.776884,218.32,218.25,8.89416254]
[1734385499802,52.67104654,218.32,218.25,8.89416254]
[1734385502628,8.89416254,218.31,218.24,8.89416254]
[1734385506813,8.89416254,218.3,218.23,8.89416254]
[1734385508141,8.89416254,218.31,218.24,8.89416254]
[1734385509029,8.89416254,218.31,218.21,20.0]
[1734385509232,8.89416254,218.31,218.24,8.89416254]
[1734385512277,8.89416254,218.3,218.21,20.0]
[1734385512484,0.12549,218.32,218.18,5.2045565]
[1734385512485,8.89416254,218.28,218.18,5.2045565]
[1734385512643,8.89416254,218.28,218.21,8.89416254]
[1734385512849,8.89416254,218.25,218.16,5.76160317]
[1734385513038,8.89416254,218.25,218.18,8.89416254]
[1734385513443,1.5134,218.26,218.21,8.89416254]
[1734385513666,1.0134,218.26,218.21,8.89416254]
[1734385515368,9.90756254,218.26,218.16,20.0]
[1734385515553,8.89416254,218.25,218.18,8.89416254]
[1734385517770,8.89416254,218.25,218.16,20.0]
[1734385517986,8.89416254,218.22,218.16,28.89416254]
[1734385519056,1.0134,218.26,218.13,5.2045565]
[1734385519057,8.89416254,218.2,218.13,8.89416254]
[1734385519373,8.89416254,218.19,218.12,8.89416254]
[1734385519761,8.89416254,218.18,218.08,5.2045565]
[1734385519988,1.5154,218.19,218.12,8.89416254]
[1734385520166,23.776884,218.23,218.08,5.2045565]
[1734385520167,7.769,218.24,218.16,8.89416254]
[1734385520502,7.769,218.24,218.17,8.89416254]
[1734385520503,8.89416254,218.23,218.17,8.89416254]
[1734385520686,8.89416254,218.23,218.16,8.89416254]
[1734385523212,8.89416254,218.22,218.15,8.89416254]
[1734385523861,8.89416254,218.2,218.11,20.0]
[1734385524086,8.89416254,218.22,218.15,8.89416254]
[1734385524660,7.769,218.24,218.15,8.89416254]
[1734385524867,7.769,218.24,218.2,8.89416254]
[1734385525081,1.6627,218.24,218.21,8.89416254]
[1734385525270,8.89416254,218.28,218.21,8.89416254]
[1734385526068,6.0944,218.29,218.16,0.6875257]
[1734385526278,8.89416254,218.28,218.21,8.89416254]
[1734385526975,1.5418,218.3,218.25,8.89416254]
[1734385527187,1.5418,218.3,218.26,8.89416254]
[1734385527493,1.5418,218.3,218.24,8.89416254]
[1734385528070,1.5418,218.3,218.25,8.89416254]
[1734385528899,6.0944,218.34,218.26,8.89416254]
[1734385529108,6.0944,218.34,218.27,8.89416254]
[1734385529403,6.0944,218.34,218.28,8.89416254]
[1734385532682,10.95019974,218.35,218.31,8.89416254]
[1734385532683,2.0560372,218.35,218.31,8.89416254]
[1734385532905,0.5415372,218.35,218.31,8.89416254]
[1734385535785,9.43569974,218.35,218.28,8.89416254]
[1734385535988,9.43569974,218.35,218.27,20.0]
[1734385536324,9.43569974,218.35,218.27,28.89416254]
[1734385538346,0.5415372,218.35,218.29,8.89416254]
[1734385538694,0.5415372,218.35,218.27,20.0]
[1734385538695,9.43569974,218.35,218.28,8.89416254]
[1734385538894,8.89416254,218.34,218.27,8.89416254]
[1734385539815,8.89416254,218.34,218.28,8.89416254]
[1734385540121,9.43569974,218.35,218.28,8.89416254]
[1734385540320,0.5415372,218.35,218.29,8.89416254]
[1734385542790,9.43569974,218.35,218.28,8.89416254]
[1734385544125,0.5415372,218.35,218.28,8.89416254]
[1734385544632,9.43569974,218.35,218.28,8.89416254]
[1734385545316,8.89416254,218.34,218.25,20.0]
[1734385545627,8.89416254,218.34,218.27,8.89416254]
[1734385546421,0.5415372,218.35,218.29,8.89416254]
[1734385546620,0.5415372,218.35,218.24,35.57665016]
[1734385546621,0.5415372,218.35,218.3,8.89416254]
[1734385547304,0.5415372,218.35,218.31,8.89416254]
[1734385548297,0.5415372,218.35,218.32,8.89416254]
[1734385548495,0.5415372,218.35,218.31,8.89416254]
[1734385549762,0.5415372,218.35,218.33,8.89416254]
[1734385550070,0.5415372,218.35,218.34,8.89416254]
[1734385555121,0.5415372,218.35,218.32,28.89416254]
[1734385555353,0.5415372,218.35,218.29,5.2045565]
[1734385555560,0.5415372,218.35,218.31,8.89416254]
[1734385556132,0.5415372,218.35,218.29,5.2045565]
[1734385556466,0.5415372,218.35,218.3,8.89416254]
[1734385556964,0.5415372,218.35,218.29,14.09871904]
[1734385557771,0.5415372,218.35,218.3,8.89416254]
[1734385557922,0.5415372,218.35,218.29,5.2045565]
[1734385558123,0.5415372,218.35,218.3,8.89416254]
[1734385563171,0.5415372,218.35,218.29,14.09871904]
[1734385564970,8.89416254,218.34,218.29,5.2045565]
[1734385565277,8.89416254,218.32,218.26,8.89416254]
[1734385566077,8.89416254,218.32,218.23,7.39818918]
[1734385566236,8.89416254,218.33,218.27,8.89416254]
[1734385566837,8.89416254,218.34,218.28,8.89416254]
[1734385567070,29.43569974,218.35,218.28,8.89416254]
[1734385568052,8.89416254,218.34,218.28,8.89416254]
[1734385568249,8.89416254,218.34,218.27,8.89416254]
[1734385569680,20.5415372,218.35,218.26,8.89416254]
[1734385569681,8.89416254,218.33,218.26,8.89416254]
[1734385570503,8.89416254,218.32,218.25,8.89416254]
[1734385570945,8.89416254,218.33,218.26,8.89416254]
[1734385571463,8.89416254,218.34,218.27,8.89416254]
[1734385571643,0.5415372,218.35,218.32,8.89416254]
[1734385571855,0.5415372,218.35,218.33,8.89416254]
[1734385572056,0.5415372,218.35,218.32,8.89416254]
[1734385572250,0.5415372,218.35,218.31,8.89416254]
[1734385572672,0.5415372,218.35,218.3,8.89416254]
[1734385572860,0.5415372,218.35,218.34,8.89416254]
[1734385573259,0.5415372,218.35,218.3,0.68701726]
[1734385573465,0.5415372,218.35,218.29,23.776884]
[1734385573814,0.5415372,218.35,218.33,8.89416254]
[1734385574497,0.5415372,218.35,218.32,8.89416254]
[1734385576300,0.5415372,218.35,218.34,8.89416254]
[1734385585326,8.89416254,218.41,218.34,8.89416254]
[1734385585327,8.89416254,218.41,218.4,4.4584628]
[1734385587927,6.5216,218.44,218.4,4.4584628]
[1734385588155,1.5893,218.45,218.4,4.4584628]
[1734385588579,10.48346254,218.45,218.4,4.4584628]
[1734385590791,1.5893,218.45,218.4,4.4584628]
[1734385590986,10.48346254,218.45,218.4,4.4584628]
[1734385591946,1.5893,218.45,218.4,4.4584628]
[1734385592149,10.48346254,218.45,218.4,4.4584628]
[1734385592653,22.42649658,218.56,218.4,4.4584628]
[1734385592654,15.530163,218.55,218.4,13.35262534]
[1734385592866,20.0,218.52,218.41,8.89416254]
[1734385593184,8.89416254,218.48,218.4,13.35262534]
[1734385595949,8.89416254,218.48,218.41,8.89416254]
[1734385600722,8.89416254,218.46,218.4,4.4584628]
[1734385600878,8.89416254,218.45,218.4,4.4584628]
[1734385601283,8.89416254,218.46,218.4,4.4584628]
[1734385602317,8.89416254,218.44,218.4,4.4584628]
[1734385602529,8.89416254,218.42,218.4,4.4584628]
[1734385602825,8.89416254,218.41,218.4,4.4584628]
[1734385604593,23.776884,218.45,218.4,4.4584628]
[1734385604799,8.89416254,218.41,218.4,4.4584628]
[1734385608122,9.01965254,218.41,218.4,4.4584628]
[1734385608547,21.5736,218.43,218.4,4.4584628]
[1734385608864,8.89416254,218.41,218.4,4.4584628]
[1734385612058,9.01965254,218.41,218.4,4.4584628]
[1734385612660,32.79653654,218.41,218.4,4.4584628]
[1734385623071,9.01965254,218.41,218.4,4.4584628]
[1734385623384,20.0,218.43,218.4,4.4584628]
[1734385623589,8.89416254,218.41,218.4,4.4584628]
[1734385627894,6.1501,218.49,218.4,4.4584628]
[1734385628119,8.89416254,218.45,218.4,4.4584628]
[1734385628295,1.603,218.53,218.4,4.4584628]
[1734385628507,8.89416254,218.49,218.41,10.50386254]
[1734385628718,6.2649,218.55,218.42,8.89416254]
[1734385628891,8.89416254,218.49,218.42,8.89416254]
[1734385629397,8.89416254,218.5,218.43,8.89416254]
[1734385629594,8.89416254,218.48,218.41,10.50386254]
[1734385630533,8.89416254,218.49,218.42,8.89416254]
[1734385630897,8.89416254,218.48,218.41,1.6097]
[1734385631103,8.89416254,218.47,218.41,1.6097]
[1734385631421,8.89416254,218.48,218.41,10.50386254]
[1734385631618,8.89416254,218.47,218.41,1.6097]
[1734385633227,8.89416254,218.49,218.42,8.89416254]
[1734385633412,8.89416254,218.49,218.41,10.50386254]
[1734385633616,8.89416254,218.48,218.41,10.50386254]
[1734385633804,8.89416254,218.47,218.41,1.6097]
[1734385634596,8.89416254,218.48,218.41,10.50386254]